[Event "Titled Tuesday Blitz April 11 Late 2023"]
[White "Caruana, Fabiano"]
[Black "Hakobyan, Aram"]
[WhiteFideId "2020009"]
[BlackFideId "13306677"]
[WhiteElo "2837"]
[BlackElo "2584"]
[Result "1-0"]
[Round "09"]
[TimeControl "180+2"]
[Date "2023.04.11"]
[WhiteClock "0:00:07"]
[BlackClock "0:00:02"]

1. e4 {[%clk 0:03:00]}  g6 {[%clk 0:03:00]} 2. d4 {[%clk 0:03:00]}  Bg7 {[%clk 0:03:01]} 3. Nc3 {[%clk 0:03:00]}  c5 {[%clk 0:03:01]} 4. d5 {[%clk 0:02:57]}  d6 {[%clk 0:03:01]} 5. h3 {[%clk 0:02:57]}  Nf6 {[%clk 0:03:01]} 6. Nf3 {[%clk 0:02:57]}  O-O {[%clk 0:03:01]} 7. a4 {[%clk 0:02:57]}  Na6 {[%clk 0:02:58]} 8. Be2 {[%clk 0:02:57]}  Nb4 {[%clk 0:02:55]} 9. O-O {[%clk 0:02:57]}  e6 {[%clk 0:02:53]} 10. dxe6 {[%clk 0:02:54]}  Bxe6 {[%clk 0:02:54]} 11. Re1 {[%clk 0:02:52]}  d5 {[%clk 0:02:42]} 12. e5 {[%clk 0:02:45]}  Ne4 {[%clk 0:02:42]} 13. Bd3 {[%clk 0:02:37]}  Nxc3 {[%clk 0:02:40]} 14. bxc3 {[%clk 0:02:37]}  Nc6 {[%clk 0:02:40]} 15. Bg5 {[%clk 0:02:35]}  Qc7 {[%clk 0:02:35]} 16. Bf4 {[%clk 0:02:35]}  Rfe8 {[%clk 0:02:27]} 17. Qd2 {[%clk 0:02:35]}  Rad8 {[%clk 0:02:12]} 18. Rab1 {[%clk 0:02:32]}  Rd7 {[%clk 0:01:56]} 19. g4 {[%clk 0:02:27]}  d4 {[%clk 0:01:46]} 20. c4 {[%clk 0:02:25]}  Rde7 {[%clk 0:01:34]} 21. Bg3 {[%clk 0:02:25]}  Qc8 {[%clk 0:01:19]} 22. Bh4 {[%clk 0:02:21]}  Rd7 {[%clk 0:01:18]} 23. Bf6 {[%clk 0:02:17]}  h6 {[%clk 0:01:14]} 24. Qf4 {[%clk 0:02:11]}  Qc7 {[%clk 0:01:09]} 25. Bxg7 {[%clk 0:02:04]}  Kxg7 {[%clk 0:01:10]} 26. Nd2 {[%clk 0:02:04]}  Qd8 {[%clk 0:01:04]} 27. Ne4 {[%clk 0:02:03]}  b6 {[%clk 0:01:05]} 28. Nf6 {[%clk 0:02:02]}  Rh8 {[%clk 0:01:00]} 29. Nxd7 {[%clk 0:01:59]}  Bxd7 {[%clk 0:01:00]} 30. Qg3 {[%clk 0:01:34]}  h5 {[%clk 0:00:57]} 31. Kg2 {[%clk 0:01:21]}  hxg4 {[%clk 0:00:51]} 32. hxg4 {[%clk 0:01:22]}  Qg5 {[%clk 0:00:51]} 33. Re4 {[%clk 0:01:16]}  Nd8 {[%clk 0:00:42]} 34. Qf4 {[%clk 0:01:00]}  Qxf4 {[%clk 0:00:37]} 35. Rxf4 {[%clk 0:01:01]}  Nc6 {[%clk 0:00:32]} 36. Re1 {[%clk 0:00:54]}  Be6 {[%clk 0:00:28]} 37. Kg3 {[%clk 0:00:47]}  g5 {[%clk 0:00:29]} 38. Rfe4 {[%clk 0:00:42]}  Ne7 {[%clk 0:00:29]} 39. R4e2 {[%clk 0:00:41]}  Nc6 {[%clk 0:00:27]} 40. Re4 {[%clk 0:00:31]}  Ne7 {[%clk 0:00:26]} 41. a5 {[%clk 0:00:28]}  bxa5 {[%clk 0:00:19]} 42. Ra1 {[%clk 0:00:29]}  Nc6 {[%clk 0:00:19]} 43. f4 {[%clk 0:00:29]}  gxf4+ {[%clk 0:00:19]} 44. Rxf4 {[%clk 0:00:30]}  Rc8 {[%clk 0:00:16]} 45. g5 {[%clk 0:00:27]}  Nxe5 {[%clk 0:00:16]} 46. Rxa5 {[%clk 0:00:27]}  Rc7 {[%clk 0:00:16]} 47. Rh4 {[%clk 0:00:22]}  Bxc4 {[%clk 0:00:13]} 48. Be4 {[%clk 0:00:11]}  d3 {[%clk 0:00:07]} 49. cxd3 {[%clk 0:00:11]}  Bxd3 {[%clk 0:00:08]} 50. Bxd3 {[%clk 0:00:07]}  Nxd3 {[%clk 0:00:09]} 51. Re4 {[%clk 0:00:07]}  c4 {[%clk 0:00:08]} 52. Ra2 {[%clk 0:00:06]}  c3 {[%clk 0:00:07]} 53. Rc2 {[%clk 0:00:06]}  Rc5 {[%clk 0:00:07]} 54. Kg4 {[%clk 0:00:05]}  a5 {[%clk 0:00:04]} 55. Re3 {[%clk 0:00:05]}  Rc4+ {[%clk 0:00:05]} 56. Kg3 {[%clk 0:00:05]}  Nb4 {[%clk 0:00:03]} 57. Rcxc3 {[%clk 0:00:05]}  Rd4 {[%clk 0:00:02]} 58. Ra3 {[%clk 0:00:05]}  Rd5 {[%clk 0:00:02]} 59. Kg4 {[%clk 0:00:05]}  Rd4+ {[%clk 0:00:03]} 60. Kh5 {[%clk 0:00:05]}  Rd5 {[%clk 0:00:04]} 61. Rac3 {[%clk 0:00:04]}  a4 {[%clk 0:00:04]} 62. Rf3 {[%clk 0:00:05]}  Ra5 {[%clk 0:00:04]} 63. Rc7 {[%clk 0:00:05]}  Kg8 {[%clk 0:00:01]} 64. Rfxf7 {[%clk 0:00:05]}  Ra8 {[%clk 0:00:01]} 65. Rg7+ {[%clk 0:00:05]}  Kf8 {[%clk 0:00:02]} 66. Rh7 {[%clk 0:00:06]}  Kg8 {[%clk 0:00:01]} 67. Rcg7+ {[%clk 0:00:06]}  Kf8 {[%clk 0:00:02]} 68. Kh6 {[%clk 0:00:07]}  Ra6+ {[%clk 0:00:02]} 69. g6 {[%clk 0:00:07]}  Rxg6+ {[%clk 0:00:02]} 70. Kxg6 {[%clk 0:00:07]} 1-0


[Site "https://www.chess.com"]

[Event "Titled Tuesday Blitz April 11 Late 2023"]
[White "Nakamura, Hikaru"]
[Black "Terry, Renato"]
[WhiteFideId "2016192"]
[BlackFideId "3803457"]
[WhiteElo "2885"]
[BlackElo "2575"]
[Result "1/2-1/2"]
[Round "09"]
[TimeControl "180+2"]
[Date "2023.04.11"]
[WhiteClock "0:00:06"]
[BlackClock "0:00:05"]

1. Nf3 {[%clk 0:03:00]}  d5 {[%clk 0:02:59]} 2. e3 {[%clk 0:02:59]}  Nf6 {[%clk 0:03:00]} 3. c4 {[%clk 0:02:58]}  e6 {[%clk 0:02:59]} 4. b3 {[%clk 0:02:59]}  g6 {[%clk 0:02:57]} 5. Bb2 {[%clk 0:02:57]}  Bg7 {[%clk 0:02:57]} 6. d4 {[%clk 0:02:57]}  O-O {[%clk 0:02:56]} 7. Nbd2 {[%clk 0:02:57]}  a5 {[%clk 0:02:48]} 8. a3 {[%clk 0:02:55]}  b6 {[%clk 0:02:46]} 9. Rc1 {[%clk 0:02:53]}  Bb7 {[%clk 0:02:46]} 10. c5 {[%clk 0:02:51]}  Ne4 {[%clk 0:02:44]} 11. Qc2 {[%clk 0:02:43]}  bxc5 {[%clk 0:02:22]} 12. dxc5 {[%clk 0:02:44]}  Nxd2 {[%clk 0:02:15]} 13. Qxd2 {[%clk 0:02:39]}  c6 {[%clk 0:01:50]} 14. h4 {[%clk 0:02:28]}  h6 {[%clk 0:01:46]} 15. h5 {[%clk 0:02:07]}  g5 {[%clk 0:01:46]} 16. Bxg7 {[%clk 0:02:06]}  Kxg7 {[%clk 0:01:47]} 17. Qc3+ {[%clk 0:02:07]}  Qf6 {[%clk 0:01:39]} 18. Ne5 {[%clk 0:02:07]}  Rd8 {[%clk 0:01:38]} 19. Rh3 {[%clk 0:02:01]}  Nd7 {[%clk 0:01:34]} 20. f4 {[%clk 0:02:01]}  Nxe5 {[%clk 0:01:01]} 21. fxe5 {[%clk 0:02:02]}  Qf5 {[%clk 0:00:59]} 22. Rf3 {[%clk 0:01:25]}  Qg4 {[%clk 0:00:54]} 23. Rd1 {[%clk 0:01:25]}  Ba6 {[%clk 0:00:48]} 24. Bxa6 {[%clk 0:01:00]}  Rxa6 {[%clk 0:00:49]} 25. Kf2 {[%clk 0:01:00]}  Qh4+ {[%clk 0:00:46]} 26. Kg1 {[%clk 0:00:59]}  Qxh5 {[%clk 0:00:40]} 27. Rdf1 {[%clk 0:00:41]}  Ra7 {[%clk 0:00:41]} 28. Rh3 {[%clk 0:00:39]}  Qg4 {[%clk 0:00:37]} 29. Qb2 {[%clk 0:00:34]}  d4 {[%clk 0:00:28]} 30. Qf2 {[%clk 0:00:34]}  Qf5 {[%clk 0:00:28]} 31. Rf3 {[%clk 0:00:33]}  dxe3 {[%clk 0:00:27]} 32. Qxe3 {[%clk 0:00:34]}  Qg4 {[%clk 0:00:22]} 33. Qf2 {[%clk 0:00:28]}  Qd4 {[%clk 0:00:20]} 34. Re3 {[%clk 0:00:29]}  Rd5 {[%clk 0:00:15]} 35. Kh2 {[%clk 0:00:23]}  Kg8 {[%clk 0:00:14]} 36. Qg3 {[%clk 0:00:19]}  Rxc5 {[%clk 0:00:10]} 37. Rf6 {[%clk 0:00:19]}  Kg7 {[%clk 0:00:06]} 38. Qh3 {[%clk 0:00:20]}  Qh4 {[%clk 0:00:06]} 39. Qxh4 {[%clk 0:00:19]}  gxh4 {[%clk 0:00:07]} 40. Rf4 {[%clk 0:00:19]}  Rd7 {[%clk 0:00:06]} 41. Rg4+ {[%clk 0:00:19]}  Kf8 {[%clk 0:00:06]} 42. Rxh4 {[%clk 0:00:20]}  Rdd5 {[%clk 0:00:06]} 43. Rh5 {[%clk 0:00:15]}  Ke7 {[%clk 0:00:05]} 44. Re4 {[%clk 0:00:08]}  Kd7 {[%clk 0:00:04]} 45. Rf4 {[%clk 0:00:08]}  Ke7 {[%clk 0:00:05]} 46. Re4 {[%clk 0:00:08]}  Ke8 {[%clk 0:00:05]} 47. Re3 {[%clk 0:00:09]}  Ke7 {[%clk 0:00:03]} 48. Re2 {[%clk 0:00:09]}  Rb5 {[%clk 0:00:03]} 49. Rxh6 {[%clk 0:00:07]}  Rxe5 {[%clk 0:00:03]} 50. Rc2 {[%clk 0:00:07]}  Rec5 {[%clk 0:00:03]} 51. Rxc5 {[%clk 0:00:07]}  Rxc5 {[%clk 0:00:04]} 52. Rh3 {[%clk 0:00:08]}  Rd5 {[%clk 0:00:04]} 53. b4 {[%clk 0:00:07]}  axb4 {[%clk 0:00:04]} 54. axb4 {[%clk 0:00:08]}  Rb5 {[%clk 0:00:04]} 55. Rh4 {[%clk 0:00:09]}  f5 {[%clk 0:00:04]} 56. Kg3 {[%clk 0:00:09]}  Kd6 {[%clk 0:00:04]} 57. Kf3 {[%clk 0:00:09]}  Ke5 {[%clk 0:00:04]} 58. Ke3 {[%clk 0:00:08]}  Kd5 {[%clk 0:00:05]} 59. Rd4+ {[%clk 0:00:08]}  Ke5 {[%clk 0:00:05]} 60. Rc4 {[%clk 0:00:09]}  Kd6 {[%clk 0:00:05]} 61. g3 {[%clk 0:00:09]}  Rb7 {[%clk 0:00:05]} 62. Rd4+ {[%clk 0:00:09]}  Ke7 {[%clk 0:00:06]} 63. Rc4 {[%clk 0:00:09]}  Kd7 {[%clk 0:00:06]} 64. Rd4+ {[%clk 0:00:10]}  Kc7 {[%clk 0:00:07]} 65. Kf4 {[%clk 0:00:10]}  Rb5 {[%clk 0:00:07]} 66. Kg5 {[%clk 0:00:10]}  Re5 {[%clk 0:00:05]} 67. Rc4 {[%clk 0:00:09]}  Kd6 {[%clk 0:00:05]} 68. Kf4 {[%clk 0:00:08]}  Rd5 {[%clk 0:00:05]} 69. Kg5 {[%clk 0:00:07]}  Re5 {[%clk 0:00:03]} 70. Kf4 {[%clk 0:00:07]}  Re1 {[%clk 0:00:03]} 71. Rd4+ {[%clk 0:00:07]}  Kc7 {[%clk 0:00:03]} 72. Kg5 {[%clk 0:00:08]}  Re3 {[%clk 0:00:03]} 73. Kf4 {[%clk 0:00:08]}  Re2 {[%clk 0:00:03]} 74. Rc4 {[%clk 0:00:07]}  Kd6 {[%clk 0:00:03]} 75. Rd4+ {[%clk 0:00:08]}  Ke7 {[%clk 0:00:04]} 76. Rc4 {[%clk 0:00:09]}  Kd7 {[%clk 0:00:04]} 77. Rd4+ {[%clk 0:00:10]}  Kc7 {[%clk 0:00:05]} 78. Rc4 {[%clk 0:00:11]}  Re1 {[%clk 0:00:05]} 79. b5 {[%clk 0:00:10]}  Re4+ {[%clk 0:00:02]} 80. Rxe4 {[%clk 0:00:10]}  fxe4 {[%clk 0:00:03]} 81. bxc6 {[%clk 0:00:03]}  Kxc6 {[%clk 0:00:03]} 82. Kxe4 {[%clk 0:00:04]}  Kd6 {[%clk 0:00:03]} 83. Kf4 {[%clk 0:00:04]}  Ke7 {[%clk 0:00:03]} 84. Ke5 {[%clk 0:00:05]}  Kf7 {[%clk 0:00:03]} 85. g4 {[%clk 0:00:05]}  Kg6 {[%clk 0:00:03]} 86. Kxe6 {[%clk 0:00:06]}  Kg5 {[%clk 0:00:04]} 87. Ke5 {[%clk 0:00:06]}  Kxg4 {[%clk 0:00:05]} 1/2-1/2


[Site "https://www.chess.com"]

[Event "Titled Tuesday Blitz April 11 Late 2023"]
[White "Naroditsky, Daniel"]
[Black "Hansen, Eric"]
[WhiteFideId "2026961"]
[BlackFideId "2606771"]
[WhiteElo "2633"]
[BlackElo "2561"]
[Result "1-0"]
[Round "09"]
[TimeControl "180+2"]
[Date "2023.04.11"]
[WhiteClock "0:00:27"]
[BlackClock "0:00:01"]

1. d4 {[%clk 0:03:00]}  Nf6 {[%clk 0:02:59]} 2. Nc3 {[%clk 0:02:58]}  d5 {[%clk 0:02:54]} 3. Bf4 {[%clk 0:02:59]}  a6 {[%clk 0:02:50]} 4. e3 {[%clk 0:02:53]}  c5 {[%clk 0:02:49]} 5. dxc5 {[%clk 0:02:53]}  Nc6 {[%clk 0:02:49]} 6. a3 {[%clk 0:02:52]}  e5 {[%clk 0:02:37]} 7. Bg5 {[%clk 0:02:52]}  d4 {[%clk 0:02:37]} 8. Na4 {[%clk 0:02:48]}  h6 {[%clk 0:02:26]} 9. Bh4 {[%clk 0:02:37]}  g5 {[%clk 0:01:51]} 10. Bg3 {[%clk 0:02:37]}  Ne4 {[%clk 0:01:52]} 11. exd4 {[%clk 0:02:14]}  Nxg3 {[%clk 0:00:53]} 12. hxg3 {[%clk 0:02:15]}  exd4 {[%clk 0:00:50]} 13. Bc4 {[%clk 0:02:05]}  Bg7 {[%clk 0:00:46]} 14. Qe2+ {[%clk 0:01:56]}  Kf8 {[%clk 0:00:45]} 15. O-O-O {[%clk 0:01:47]}  Bf5 {[%clk 0:00:42]} 16. Nb6 {[%clk 0:01:38]}  Rb8 {[%clk 0:00:42]} 17. Nf3 {[%clk 0:01:37]}  Qf6 {[%clk 0:00:36]} 18. Rhe1 {[%clk 0:01:14]}  Kg8 {[%clk 0:00:24]} 19. Bd3 {[%clk 0:01:07]}  Be6 {[%clk 0:00:21]} 20. Nd2 {[%clk 0:00:57]}  Qe7 {[%clk 0:00:18]} 21. Ne4 {[%clk 0:00:54]}  Rd8 {[%clk 0:00:16]} 22. Nd6 {[%clk 0:00:51]}  Qc7 {[%clk 0:00:14]} 23. Bc4 {[%clk 0:00:38]}  Bxc4 {[%clk 0:00:04]} 24. Nbxc4 {[%clk 0:00:36]}  Bf6 {[%clk 0:00:02]} 25. Qf3 {[%clk 0:00:31]}  Kg7 {[%clk 0:00:01]} 26. Nf5+ {[%clk 0:00:29]}  Kg6 {[%clk 0:00:01]} 27. Qd3 {[%clk 0:00:27]} 1-0


[Site "https://www.chess.com"]

[Event "Titled Tuesday Blitz April 11 Late 2023"]
[White "Sargsyan, Shant"]
[Black "Melkumyan, Hrant"]
[WhiteFideId "13306766"]
[BlackFideId "13302485"]
[WhiteElo "2628"]
[BlackElo "2604"]
[Result "0-1"]
[Round "09"]
[TimeControl "180+2"]
[Date "2023.04.11"]
[WhiteClock "0:00:04"]
[BlackClock "0:00:26"]

1. c4 {[%clk 0:02:47]}  e6 {[%clk 0:02:59]} 2. Nf3 {[%clk 0:02:45]}  d5 {[%clk 0:02:54]} 3. d4 {[%clk 0:02:46]}  Nf6 {[%clk 0:02:46]} 4. cxd5 {[%clk 0:02:46]}  exd5 {[%clk 0:02:44]} 5. Nc3 {[%clk 0:02:46]}  c6 {[%clk 0:02:41]} 6. Bf4 {[%clk 0:02:46]}  Bf5 {[%clk 0:02:40]} 7. e3 {[%clk 0:02:46]}  Be7 {[%clk 0:02:34]} 8. h3 {[%clk 0:02:46]}  Ne4 {[%clk 0:02:22]} 9. Bd3 {[%clk 0:02:43]}  Nd7 {[%clk 0:02:15]} 10. Qc2 {[%clk 0:02:36]}  Nxc3 {[%clk 0:02:01]} 11. Bxf5 {[%clk 0:02:31]}  Nb5 {[%clk 0:02:01]} 12. Bxh7 {[%clk 0:01:58]}  g6 {[%clk 0:02:01]} 13. Bxg6 {[%clk 0:01:55]}  Qa5+ {[%clk 0:02:02]} 14. Kf1 {[%clk 0:01:55]}  fxg6 {[%clk 0:02:02]} 15. Qxg6+ {[%clk 0:01:56]}  Kd8 {[%clk 0:02:03]} 16. Ne5 {[%clk 0:01:48]}  Nxe5 {[%clk 0:01:50]} 17. Bxe5 {[%clk 0:01:49]}  Rf8 {[%clk 0:01:50]} 18. Bg7 {[%clk 0:01:41]}  Kd7 {[%clk 0:01:33]} 19. Qg4+ {[%clk 0:01:32]}  Kc7 {[%clk 0:01:33]} 20. Bxf8 {[%clk 0:01:32]}  Rxf8 {[%clk 0:01:33]} 21. h4 {[%clk 0:01:32]}  Nd6 {[%clk 0:01:25]} 22. Kg1 {[%clk 0:01:03]}  Qd2 {[%clk 0:01:18]} 23. Rf1 {[%clk 0:00:58]}  Ne4 {[%clk 0:01:18]} 24. Rh3 {[%clk 0:00:33]}  Nxf2 {[%clk 0:01:04]} 25. Qg3+ {[%clk 0:00:34]}  Bd6 {[%clk 0:01:03]} 26. Qg7+ {[%clk 0:00:34]}  Kb6 {[%clk 0:01:03]} 27. Rg3 {[%clk 0:00:20]}  Bxg3 {[%clk 0:00:50]} 28. Qxf8 {[%clk 0:00:20]}  Ne4 {[%clk 0:00:40]} 29. Qf3 {[%clk 0:00:17]}  Bxh4 {[%clk 0:00:40]} 30. a4 {[%clk 0:00:13]}  Bg5 {[%clk 0:00:39]} 31. Kh2 {[%clk 0:00:10]}  Bxe3 {[%clk 0:00:35]} 32. a5+ {[%clk 0:00:10]}  Ka6 {[%clk 0:00:33]} 33. Ra1 {[%clk 0:00:09]}  Bf4+ {[%clk 0:00:30]} 34. Kh1 {[%clk 0:00:08]}  Ng3+ {[%clk 0:00:29]} 35. Kg1 {[%clk 0:00:08]}  Qxd4+ {[%clk 0:00:28]} 36. Kh2 {[%clk 0:00:07]}  Ne2+ {[%clk 0:00:26]} 37. Kh3 {[%clk 0:00:06]}  Qh8+ {[%clk 0:00:26]} 38. Kg4 {[%clk 0:00:06]}  Qg7+ {[%clk 0:00:27]} 39. Kh3 {[%clk 0:00:02]}  Qh6+ {[%clk 0:00:27]} 40. Kg4 {[%clk 0:00:02]}  Qg5+ {[%clk 0:00:27]} 41. Kh3 {[%clk 0:00:03]}  Qf5+ {[%clk 0:00:27]} 42. g4 {[%clk 0:00:03]}  Qh7+ {[%clk 0:00:26]} 43. Kg2 {[%clk 0:00:03]}  Qh2+ {[%clk 0:00:26]} 44. Kf1 {[%clk 0:00:04]}  Ng3+ {[%clk 0:00:26]} 45. Ke1 {[%clk 0:00:04]}  Qd2# {[%clk 0:00:26]} 0-1


[Site "https://www.chess.com"]

[Event "Titled Tuesday Blitz April 11 Late 2023"]
[White "Mammadov, Zaur"]
[Black "Eljanov, Pavel"]
[WhiteFideId "13401033"]
[BlackFideId "14102951"]
[WhiteElo "2441"]
[BlackElo "2598"]
[Result "1-0"]
[Round "09"]
[TimeControl "180+2"]
[Date "2023.04.11"]
[WhiteClock "0:00:11"]
[BlackClock "0:00:14"]

1. e4 {[%clk 0:03:00]}  c6 {[%clk 0:02:59]} 2. c4 {[%clk 0:03:01]}  d5 {[%clk 0:03:00]} 3. cxd5 {[%clk 0:03:01]}  cxd5 {[%clk 0:03:01]} 4. exd5 {[%clk 0:03:02]}  Nf6 {[%clk 0:03:01]} 5. Nc3 {[%clk 0:03:03]}  g6 {[%clk 0:03:01]} 6. Bc4 {[%clk 0:03:02]}  Bg7 {[%clk 0:03:00]} 7. d3 {[%clk 0:03:02]}  O-O {[%clk 0:02:59]} 8. Nf3 {[%clk 0:03:03]}  a6 {[%clk 0:02:57]} 9. a4 {[%clk 0:03:03]}  b6 {[%clk 0:02:55]} 10. O-O {[%clk 0:03:01]}  Bb7 {[%clk 0:02:56]} 11. Qb3 {[%clk 0:03:01]}  Nbd7 {[%clk 0:02:49]} 12. Be3 {[%clk 0:02:42]}  Rc8 {[%clk 0:02:45]} 13. Rfe1 {[%clk 0:02:22]}  Nc5 {[%clk 0:02:42]} 14. Qa2 {[%clk 0:02:15]}  Ne8 {[%clk 0:02:32]} 15. Rad1 {[%clk 0:01:59]}  Nd6 {[%clk 0:02:30]} 16. Qa3 {[%clk 0:01:54]}  Qd7 {[%clk 0:01:44]} 17. h3 {[%clk 0:01:41]}  Rc7 {[%clk 0:01:37]} 18. Ba2 {[%clk 0:01:39]}  Rfc8 {[%clk 0:01:33]} 19. Bf4 {[%clk 0:01:31]}  a5 {[%clk 0:01:31]} 20. Bxd6 {[%clk 0:01:23]}  exd6 {[%clk 0:01:14]} 21. Nb5 {[%clk 0:01:23]}  Nxa4 {[%clk 0:01:15]} 22. Qxa4 {[%clk 0:01:04]}  Ba6 {[%clk 0:01:15]} 23. Nc3 {[%clk 0:00:59]}  Qxa4 {[%clk 0:01:11]} 24. Nxa4 {[%clk 0:00:59]}  b5 {[%clk 0:01:12]} 25. Nc3 {[%clk 0:00:50]}  b4 {[%clk 0:01:08]} 26. Ne4 {[%clk 0:00:49]}  Bxb2 {[%clk 0:01:05]} 27. Nxd6 {[%clk 0:00:49]}  Rb8 {[%clk 0:01:03]} 28. Bc4 {[%clk 0:00:36]}  Rd8 {[%clk 0:00:54]} 29. Bxa6 {[%clk 0:00:32]}  Rxd6 {[%clk 0:00:54]} 30. Bc4 {[%clk 0:00:33]}  a4 {[%clk 0:00:53]} 31. Re8+ {[%clk 0:00:30]}  Kg7 {[%clk 0:00:53]} 32. Ra8 {[%clk 0:00:31]}  a3 {[%clk 0:00:51]} 33. Nd2 {[%clk 0:00:29]}  Rdd7 {[%clk 0:00:48]} 34. g3 {[%clk 0:00:16]}  Ra7 {[%clk 0:00:48]} 35. Rxa7 {[%clk 0:00:17]}  Rxa7 {[%clk 0:00:48]} 36. Ba2 {[%clk 0:00:18]}  Rc7 {[%clk 0:00:43]} 37. Nc4 {[%clk 0:00:18]}  Bc3 {[%clk 0:00:41]} 38. d6 {[%clk 0:00:19]}  Rb7 {[%clk 0:00:41]} 39. Bb3 {[%clk 0:00:19]}  Kf6 {[%clk 0:00:38]} 40. Kg2 {[%clk 0:00:18]}  Ra7 {[%clk 0:00:39]} 41. Ba2 {[%clk 0:00:17]}  Rb7 {[%clk 0:00:37]} 42. Rb1 {[%clk 0:00:18]}  Rb8 {[%clk 0:00:28]} 43. f4 {[%clk 0:00:18]}  Ke6 {[%clk 0:00:27]} 44. Kf3 {[%clk 0:00:19]}  Kd7 {[%clk 0:00:27]} 45. Ke2 {[%clk 0:00:16]}  Re8+ {[%clk 0:00:26]} 46. Kf3 {[%clk 0:00:16]}  f6 {[%clk 0:00:25]} 47. g4 {[%clk 0:00:15]}  Rb8 {[%clk 0:00:24]} 48. g5 {[%clk 0:00:16]}  fxg5 {[%clk 0:00:23]} 49. fxg5 {[%clk 0:00:17]}  Re8 {[%clk 0:00:23]} 50. h4 {[%clk 0:00:16]}  Rf8+ {[%clk 0:00:23]} 51. Ke4 {[%clk 0:00:15]}  Rf2 {[%clk 0:00:22]} 52. Bb3 {[%clk 0:00:14]}  a2 {[%clk 0:00:23]} 53. Bxa2 {[%clk 0:00:14]}  Rxa2 {[%clk 0:00:24]} 54. Rf1 {[%clk 0:00:14]}  Ke6 {[%clk 0:00:19]} 55. Rf8 {[%clk 0:00:12]}  Re2+ {[%clk 0:00:19]} 56. Kf3 {[%clk 0:00:12]}  Rh2 {[%clk 0:00:19]} 57. Re8+ {[%clk 0:00:11]}  Kd7 {[%clk 0:00:19]} 58. Re7+ {[%clk 0:00:12]}  Kd8 {[%clk 0:00:20]} 59. Na5 {[%clk 0:00:11]}  Rh3+ {[%clk 0:00:14]} 60. Kg4 {[%clk 0:00:11]} 1-0


[Site "https://www.chess.com"]

[Event "Titled Tuesday Blitz April 11 Late 2023"]
[White "Lazavik, Denis"]
[Black "Kovalev, Vladislav"]
[WhiteFideId "13515110"]
[BlackFideId "13504398"]
[WhiteElo "2560"]
[BlackElo "2555"]
[Result "1-0"]
[Round "09"]
[TimeControl "180+2"]
[Date "2023.04.11"]
[WhiteClock "0:00:26"]
[BlackClock "0:00:04"]

1. d4 {[%clk 0:03:00]}  Nf6 {[%clk 0:02:58]} 2. c4 {[%clk 0:03:01]}  e6 {[%clk 0:02:56]} 3. Nf3 {[%clk 0:03:02]}  d5 {[%clk 0:02:54]} 4. g3 {[%clk 0:03:02]}  h6 {[%clk 0:02:51]} 5. Bg2 {[%clk 0:03:02]}  Bd6 {[%clk 0:02:52]} 6. O-O {[%clk 0:03:02]}  O-O {[%clk 0:02:52]} 7. b3 {[%clk 0:03:03]}  b6 {[%clk 0:02:38]} 8. Bb2 {[%clk 0:03:02]}  Bb7 {[%clk 0:02:38]} 9. Nc3 {[%clk 0:03:01]}  Nbd7 {[%clk 0:02:35]} 10. Rc1 {[%clk 0:03:00]}  a6 {[%clk 0:02:34]} 11. cxd5 {[%clk 0:02:53]}  exd5 {[%clk 0:02:32]} 12. Qc2 {[%clk 0:02:52]}  Re8 {[%clk 0:02:28]} 13. Nh4 {[%clk 0:02:45]}  Rc8 {[%clk 0:02:12]} 14. Rfd1 {[%clk 0:02:42]}  Bf8 {[%clk 0:01:46]} 15. e3 {[%clk 0:02:37]}  g6 {[%clk 0:01:25]} 16. Nf3 {[%clk 0:02:25]}  Bd6 {[%clk 0:01:20]} 17. Ne2 {[%clk 0:02:23]}  Ne4 {[%clk 0:01:17]} 18. Nf4 {[%clk 0:02:23]}  Qe7 {[%clk 0:01:07]} 19. Nd3 {[%clk 0:02:17]}  f6 {[%clk 0:01:01]} 20. Nf4 {[%clk 0:02:03]}  g5 {[%clk 0:00:56]} 21. Nd3 {[%clk 0:01:56]}  Nf8 {[%clk 0:00:55]} 22. Nfe1 {[%clk 0:01:55]}  g4 {[%clk 0:00:39]} 23. Qe2 {[%clk 0:01:53]}  h5 {[%clk 0:00:39]} 24. Nf4 {[%clk 0:01:49]}  Bxf4 {[%clk 0:00:37]} 25. exf4 {[%clk 0:01:45]}  Qh7 {[%clk 0:00:21]} 26. Qd3 {[%clk 0:01:43]}  Ne6 {[%clk 0:00:15]} 27. Nc2 {[%clk 0:01:42]}  Ng7 {[%clk 0:00:12]} 28. Re1 {[%clk 0:01:28]}  Nf5 {[%clk 0:00:12]} 29. Nb4 {[%clk 0:01:28]}  Nfd6 {[%clk 0:00:05]} 30. Nxa6 {[%clk 0:01:18]}  c6 {[%clk 0:00:05]} 31. Nb4 {[%clk 0:01:17]}  h4 {[%clk 0:00:03]} 32. Nc2 {[%clk 0:01:12]}  f5 {[%clk 0:00:03]} 33. Ne3 {[%clk 0:01:09]}  Kf7 {[%clk 0:00:03]} 34. Ba3 {[%clk 0:00:57]}  Rh8 {[%clk 0:00:02]} 35. Nf1 {[%clk 0:00:57]}  hxg3 {[%clk 0:00:02]} 36. fxg3 {[%clk 0:00:58]}  Qg6 {[%clk 0:00:02]} 37. Bxd6 {[%clk 0:00:57]}  Qxd6 {[%clk 0:00:03]} 38. a4 {[%clk 0:00:53]}  Rh6 {[%clk 0:00:04]} 39. Rb1 {[%clk 0:00:40]}  Re8 {[%clk 0:00:03]} 40. b4 {[%clk 0:00:38]}  Ra8 {[%clk 0:00:03]} 41. a5 {[%clk 0:00:37]}  b5 {[%clk 0:00:03]} 42. Ne3 {[%clk 0:00:35]}  Kg6 {[%clk 0:00:02]} 43. Bxe4 {[%clk 0:00:29]}  dxe4 {[%clk 0:00:02]} 44. Qc3 {[%clk 0:00:30]}  Rah8 {[%clk 0:00:01]} 45. Rb2 {[%clk 0:00:30]}  Kg7 {[%clk 0:00:01]} 46. d5+ {[%clk 0:00:30]}  Kf7 {[%clk 0:00:02]} 47. Nxf5 {[%clk 0:00:30]}  Qxd5 {[%clk 0:00:02]} 48. Qg7+ {[%clk 0:00:30]}  Ke6 {[%clk 0:00:02]} 49. Nxh6 {[%clk 0:00:27]}  Rh7 {[%clk 0:00:03]} 50. Qxh7 {[%clk 0:00:26]}  Qd4+ {[%clk 0:00:04]} 51. Rf2 {[%clk 0:00:26]} 1-0


[Site "https://www.chess.com"]